lending/lending_fUSD_20250210
["ID","MTS","AMOUNT","RATE_DAILY","PERIOD"]
[352549536,1739161836353,-505.96403883,9.979e-05,2]
[352549537,1739161836362,-151.0,9.979e-05,2]
[352549538,1739161836371,-1488.0,9.98e-05,2]
[352549539,1739161836380,-222223.43766969,9.98e-05,2]
[352549540,1739161836395,-506.36938874,9.98e-05,2]
[352549541,1739161836406,-2805349.70992683,9.98e-05,2]
[352549542,1739161836417,-340.09884005,9.98e-05,2]
[352549543,1739161836429,-54553.73703819,9.98e-05,2]
[352549544,1739161836451,-500.0,9.669e-05,2]
[352549545,1739161836462,-2411.52205608,9.98e-05,2]
[352549546,1739161836474,-48485.97042367,9.98e-05,2]
[352549547,1739161836483,-2000.0,9.98e-05,2]
[352549548,1739161836494,-151.0,9.98e-05,2]
[352549549,1739161836503,-192.367553,9.98e-05,2]
[352549550,1739161836512,-5283.2541828,9.99e-05,2]
[352549551,1739161836523,-2417.1568976,9.99e-05,2]
[352549552,1739161836533,-93297.43564038,9.997e-05,2]
[352549553,1739161836542,-151.0,9.997e-05,2]
[352549554,1739161836551,-198.095966,9.997e-05,2]
[352549555,1739161836560,-184.11,9.998e-05,2]
[352549556,1739161836570,-49134.838503,9.999e-05,2]
[352549557,1739161836580,-701026.56532625,0.0001,2]
[352549558,1739161836591,-1677.34175643,0.0001,2]
[352549559,1739161837725,-348.23005832,0.0001,2]
[352549560,1739161837737,-2288.63041574,0.0001,2]
[352549561,1739161837749,-3511.95,0.0001,2]
[352549562,1739161837788,-475.35766925,0.0001,2]
[352549563,1739161837849,-8749.44770489,0.0001,2]
[352549564,1739161837860,-6596.03655,0.0001,2]
[352549565,1739161837908,-286.49996773,0.0001,2]
[352549782,1739161840106,-1007.0,9.921e-05,2]
[352549784,1739161840116,-2162.55114859,0.0001,2]
[352550669,1739162120997,543.36809274,9.669e-05,30]
[352550701,1739163032001,-1049.05504559,8.219e-05,2]
[352550702,1739163032012,-151.43495441,8.219e-05,2]
[352550703,1739163032022,-250.0,8.613e-05,2]
[352550704,1739163032032,-1000.0,8.661e-05,2]
[352550705,1739163032042,-49613.6511,8.836e-05,2]
[352550706,1739163032051,-1618.6527,8.973e-05,2]
[352550707,1739163032061,-150.0,9e-05,2]
[352550708,1739163032070,-150.0,9e-05,2]
[352550709,1739163032079,-150.0,9e-05,2]
[352550710,1739163032089,-163.51,9.024e-05,2]
[352550711,1739163032098,-150.0,9.077e-05,2]
[352550712,1739163032107,-269.86,9.081e-05,2]
[352550713,1739163032117,-19025.37,9.108e-05,2]
[352550714,1739163032126,-500.0,9.118e-05,2]
[352550715,1739163032135,-7920.07,9.134e-05,2]
[352550716,1739163032145,-1324.78,9.134e-05,2]
[352550717,1739163032154,-150.99,9.134e-05,2]
[352550718,1739163032164,-150.0,9.154e-05,2]
[352550719,1739163032174,-879.22,9.205e-05,2]
[352550720,1739163032183,-779.15,9.205e-05,2]
[352550721,1739163032192,-150.0,9.231e-05,2]
[352550722,1739163032202,-150.0,9.308e-05,2]
[352550723,1739163032211,-150.0,9.385e-05,2]
[352550724,1739163032220,-150.0,9.462e-05,2]
[352550725,1739163032229,-150.0,9.538e-05,2]
[352550726,1739163032238,-150.0,9.615e-05,2]
[352550727,1739163032248,-500.0,9.668e-05,2]
[352550728,1739163032257,-415.3742493,9.668e-05,2]
[352550729,1739163032267,-500.0,9.668e-05,2]
[352550730,1739163032276,-543.78074262,9.668e-05,2]
[352550731,1739163032287,-503.30544143,9.669e-05,2]
[352550732,1739163032296,-500.0,9.669e-05,2]
[352550733,1739163032306,-501.93018528,9.669e-05,2]
[352550734,1739163032315,-505.3003222,9.669e-05,2]
[352550735,1739163032324,-500.0,9.669e-05,2]
[352550736,1739163032333,-500.0,9.669e-05,2]
[352550737,1739163032345,-509.63617026,9.669e-05,2]
[352550738,1739163032354,-487.44340719,9.669e-05,2]
[352550739,1739163032363,-505.78699749,9.669e-05,2]
[352550740,1739163032373,-500.0,9.669e-05,2]
[352550741,1739163032382,-502.25387608,9.669e-05,2]
[352550742,1739163032391,-505.57804997,9.669e-05,2]
[352550743,1739163032400,-500.0,9.669e-05,2]
[352550744,1739163032409,-500.0,9.669e-05,2]
[352550745,1739163032418,-500.0,9.669e-05,2]
[352550746,1739163032427,-504.2026994,9.669e-05,2]
[352550747,1739163032436,-500.0,9.669e-05,2]
[352550748,1739163032445,-512.06800345,9.669e-05,2]
[352550749,1739163032455,-507.10662124,9.669e-05,2]
[352550750,1739163032464,-509.50145344,9.669e-05,2]
[352550751,1739163032473,-504.5888,9.669e-05,2]
[352550752,1739163032482,-505.36592553,9.669e-05,2]
[352550753,1739163032493,-507.64025674,9.669e-05,2]
[352550754,1739163032501,-500.0,9.669e-05,2]
[352550755,1739163032510,-503.36254981,9.669e-05,2]
[352550757,1739163032519,-506.16202136,9.669e-05,2]
[352550759,1739163032528,-393.98741833,9.669e-05,2]
[352550761,1739163032537,-466.68411241,9.669e-05,2]
[352550763,1739163032546,-504.54854072,9.669e-05,2]
[352550765,1739163032555,-500.0,9.669e-05,2]
[352550767,1739163032564,-507.25953439,9.669e-05,2]
[352550769,1739163032573,-606.22457517,9.669e-05,2]
[352550770,1739163032582,-500.0,9.669e-05,2]
[352550772,1739163032592,-500.0,9.669e-05,2]
[352550774,1739163032602,-500.0,9.669e-05,2]
[352550776,1739163032611,-500.0,9.669e-05,2]
[352550778,1739163032619,-500.0,9.669e-05,2]
[352550780,1739163032629,-500.0,9.669e-05,2]
[352550782,1739163032638,-505.77937355,9.669e-05,2]
[352550784,1739163032648,-500.0,9.669e-05,2]
[352550786,1739163032657,-500.0,9.669e-05,2]
[352550788,1739163032666,-500.0,9.669e-05,2]
[352550790,1739163032675,-500.0,9.669e-05,2]
[352550792,1739163032684,-512.62099367,9.669e-05,2]
[352550794,1739163032693,-500.0,9.669e-05,2]
[352550796,1739163032702,-502.94781024,9.669e-05,2]
[352550798,1739163032711,-504.50212378,9.669e-05,2]
[352550800,1739163032720,-174.09501756,9.669e-05,2]
[352550802,1739163032729,-500.0,9.669e-05,2]
[352550804,1739163032739,-508.19354412,9.669e-05,2]
[352550806,1739163032748,-503.7138141,9.669e-05,2]
[352550808,1739163032757,-510.66335526,9.669e-05,2]
[352550810,1739163032767,-510.28025035,9.669e-05,2]
[352550812,1739163032776,-500.0,9.669e-05,2]
[352550814,1739163032785,-500.0,9.669e-05,2]
[352550816,1739163032794,-508.40319212,9.669e-05,2]
[352550818,1739163032803,-500.0,9.669e-05,2]
[352550820,1739163032812,-507.36264869,9.669e-05,2]
[352550822,1739163032821,-506.84093181,9.669e-05,2]
[352550824,1739163032830,-500.0,9.669e-05,2]
[352550826,1739163032844,-505.67982171,9.669e-05,2]
[352550828,1739163032853,-500.0,9.669e-05,2]
[352550830,1739163032862,-510.53869001,9.669e-05,2]
[352550832,1739163032871,-500.0,9.669e-05,2]
[352550834,1739163032881,-502.55561316,9.669e-05,2]
[352550836,1739163032890,-440.96613487,9.669e-05,2]
[352550838,1739163032899,-500.0,9.669e-05,2]
[352550840,1739163032909,-500.0,9.669e-05,2]
[352550842,1739163032920,-500.0,9.669e-05,2]
[352550844,1739163032929,-500.0,9.669e-05,2]
[352550846,1739163032938,-500.0,9.669e-05,2]
[352550848,1739163032946,-500.0,9.669e-05,2]
[352550850,1739163032955,-500.0,9.669e-05,2]
[352550852,1739163032964,-506.72723789,9.669e-05,2]
[352550854,1739163032973,-500.0,9.669e-05,2]
[352550856,1739163032982,-510.39531228,9.669e-05,2]
[352550858,1739163032991,-500.0,9.669e-05,2]
[352550860,1739163032999,-506.79521819,9.669e-05,2]
[352550862,1739163033008,-500.0,9.669e-05,2]
[352550864,1739163033017,-506.37513328,9.669e-05,2]
[352550865,1739163033027,-500.0,9.669e-05,2]
[352550867,1739163033036,-504.68205245,9.669e-05,2]
[352550869,1739163033045,-503.97791718,9.669e-05,2]
[352550871,1739163033055,-500.0,9.669e-05,2]
[352550873,1739163033064,-500.0,9.669e-05,2]
[352550875,1739163033074,-500.0,9.669e-05,2]
[352550878,1739163033084,-504.47641957,9.669e-05,2]
[352550880,1739163033094,-500.0,9.669e-05,2]
[352550881,1739163033103,-505.01813115,9.669e-05,2]
[352550882,1739163033113,-500.0,9.669e-05,2]
[352550884,1739163033123,-503.44033467,9.669e-05,2]
[352550886,1739163033132,-503.18922588,9.669e-05,2]
[352550889,1739163033142,-504.77103791,9.669e-05,2]
[352550890,1739163033152,-500.0,9.669e-05,2]
[352550893,1739163033163,-500.0,9.669e-05,2]
[352550894,1739163033173,-505.06313955,9.669e-05,2]
[352550896,1739163033182,-506.39442063,9.669e-05,2]
[352550898,1739163033192,-504.50339171,9.669e-05,2]
[352550899,1739163033202,-500.0,9.669e-05,2]
[352550901,1739163033212,-503.2364782,9.669e-05,2]
[352550903,1739163033222,-510.00025311,9.669e-05,2]
[352550905,1739163033232,-503.84705079,9.669e-05,2]
[352550907,1739163033242,-502.38335042,9.669e-05,2]
[352550909,1739163033251,-500.0,9.669e-05,2]
[352550911,1739163033262,-509.25923912,9.669e-05,2]
[352550913,1739163033271,-507.43528885,9.669e-05,2]
[352550915,1739163033280,-504.77507293,9.669e-05,2]
[352550917,1739163033289,-405.11288619,9.669e-05,2]
[352550919,1739163033298,-509.48995569,9.669e-05,2]
[352550921,1739163033307,-504.66801724,9.669e-05,2]
[352550923,1739163033316,-503.65086135,9.669e-05,2]
[352550925,1739163033326,-511.08373866,9.669e-05,2]
[352550927,1739163033335,-503.08668014,9.669e-05,2]
[352550929,1739163033344,-507.15123806,9.669e-05,2]
[352550930,1739163033354,-500.0,9.669e-05,2]
[352550933,1739163033364,-508.65919259,9.669e-05,2]
[352550935,1739163033375,-511.5115966,9.669e-05,2]
[352550936,1739163033385,-503.18330289,9.669e-05,2]
[352550938,1739163033394,-500.0,9.669e-05,2]
[352550940,1739163033404,-500.0,9.669e-05,2]
[352550942,1739163033414,-500.0,9.669e-05,2]
[352550944,1739163033423,-500.0,9.669e-05,2]
[352550946,1739163033433,-555.45,9.669e-05,2]
[352550948,1739163033443,-500.0,9.669e-05,2]
[352550950,1739163033455,-500.0,9.669e-05,2]
[352550952,1739163033464,-508.9702335,9.669e-05,2]
[352550953,1739163033474,-599.29,9.669e-05,2]
[352550954,1739163033484,-500.0,9.669e-05,2]
[352550956,1739163033494,-504.95588074,9.669e-05,2]
[352550958,1739163033504,-500.0,9.669e-05,2]
[352550959,1739163033513,-505.99058063,9.669e-05,2]
[352550960,1739163033523,-500.0,9.669e-05,2]
[352550961,1739163033532,-500.0,9.669e-05,2]
[352550962,1739163033542,-504.68969502,9.669e-05,2]
[352550963,1739163033551,-500.0,9.669e-05,2]
[352550964,1739163033560,-500.0,9.669e-05,2]
[352550965,1739163033570,-504.54102875,9.669e-05,2]
[352550966,1739163033579,-500.0,9.669e-05,2]
[352550967,1739163033588,-505.1917673,9.669e-05,2]
[352550968,1739163033599,-500.0,9.669e-05,2]
[352550969,1739163033608,-611.06715318,9.669e-05,2]
[352550970,1739163033618,-500.0,9.669e-05,2]
[352550971,1739163033627,-506.54258368,9.669e-05,2]
[352550972,1739163033637,-500.0,9.669e-05,2]
[352550973,1739163033647,-500.0,9.669e-05,2]
[352550974,1739163033656,-503.94740425,9.669e-05,2]
[352550975,1739163033666,-505.24344115,9.669e-05,2]
[352550976,1739163033675,-500.0,9.669e-05,2]
[352550977,1739163033685,-500.0,9.669e-05,2]
[352550978,1739163033695,-502.84954173,9.669e-05,2]
[352550979,1739163033705,-506.04364379,9.669e-05,2]
[352550980,1739163033715,-500.0,9.669e-05,2]
[352550981,1739163033724,-509.33483144,9.669e-05,2]
[352550982,1739163033733,-508.31131781,9.669e-05,2]
[352550983,1739163033743,-500.0,9.669e-05,2]
[352550984,1739163033753,-500.0,9.669e-05,2]
[352550985,1739163033762,-500.0,9.669e-05,2]
[352550986,1739163033771,-500.0,9.669e-05,2]
[352550987,1739163033780,-167.64832442,9.669e-05,2]
[352550988,1739163033789,-500.0,9.669e-05,2]
[352550989,1739163033799,-508.83193177,9.669e-05,2]
[352550990,1739163033809,-500.0,9.669e-05,2]
[352550991,1739163033818,-500.0,9.669e-05,2]
[352550992,1739163033832,-500.0,9.669e-05,2]
[352550993,1739163033842,-500.0,9.669e-05,2]
[352550994,1739163033852,-500.0,9.669e-05,2]
[352550995,1739163033861,-528.75,9.669e-05,2]
[352550996,1739163033871,-500.0,9.669e-05,2]
[352550997,1739163033879,-648.14177578,9.669e-05,2]
[352550998,1739163033888,-500.0,9.669e-05,2]
[352550999,1739163033898,-500.0,9.669e-05,2]
[352551000,1739163033907,-500.0,9.669e-05,2]
[352551001,1739163033916,-506.43029608,9.669e-05,2]
[352551002,1739163033926,-500.0,9.669e-05,2]
[352551003,1739163033935,-641.15702462,9.669e-05,2]
[352551004,1739163033945,-500.0,9.669e-05,2]
[352551005,1739163033955,-500.0,9.669e-05,2]
[352551006,1739163033964,-504.89968958,9.669e-05,2]
[352551007,1739163033973,-500.0,9.669e-05,2]
[352551008,1739163033983,-503.90956035,9.669e-05,2]
[352551009,1739163033992,-500.0,9.669e-05,2]
[352551010,1739163034001,-500.0,9.669e-05,2]
[352551011,1739163034011,-500.0,9.669e-05,2]
[352551012,1739163034020,-500.0,9.669e-05,2]
[352551013,1739163034030,-500.0,9.669e-05,2]
[352551014,1739163034040,-534.91840991,9.669e-05,2]
[352551015,1739163034050,-500.0,9.669e-05,2]
[352551016,1739163034059,-500.0,9.669e-05,2]
[352551017,1739163034069,-504.08844934,9.669e-05,2]
[352551018,1739163034078,-507.50854202,9.669e-05,2]
[352551019,1739163034088,-494.0,9.669e-05,2]
[352551020,1739163034099,-500.0,9.669e-05,2]
[352551021,1739163034109,-500.0,9.669e-05,2]
[352551022,1739163034119,-348.25705432,9.669e-05,2]
[352551023,1739163034128,-510.88371174,9.669e-05,2]
[352551024,1739163034138,-500.0,9.669e-05,2]
[352551025,1739163034147,-505.98778294,9.669e-05,2]
[352551026,1739163034156,-505.8821177,9.669e-05,2]
[352551027,1739163034166,-411.08607713,9.669e-05,2]
[352551028,1739163034175,-500.0,9.669e-05,2]
[352551029,1739163034184,-511.58982979,9.669e-05,2]
[352551030,1739163034194,-505.51222933,9.669e-05,2]
[352551031,1739163034203,-512.66748766,9.669e-05,2]
[352551032,1739163034213,-500.0,9.669e-05,2]
[352551033,1739163034222,-500.0,9.669e-05,2]
[352551034,1739163034232,-505.92121305,9.669e-05,2]
[352551035,1739163034241,-495.05948351,9.669e-05,2]
[352551036,1739163034251,-500.0,9.669e-05,2]
[352551037,1739163034260,-500.0,9.669e-05,2]
[352551038,1739163034270,-500.0,9.669e-05,2]
[352551039,1739163034280,-508.64790547,9.669e-05,2]
[352551040,1739163034289,-386.97076474,9.669e-05,2]
[352551041,1739163034299,-511.52083271,9.669e-05,2]
[352551042,1739163034308,-506.66380446,9.669e-05,2]
[352551043,1739163034318,-500.0,9.669e-05,2]
[352551044,1739163034328,-608.27293243,9.669e-05,2]
[352551045,1739163034338,-210.90063373,9.669e-05,2]
[352551046,1739163034348,-500.0,9.669e-05,2]
[352551047,1739163034358,-500.0,9.669e-05,2]
[352551048,1739163034369,-500.0,9.669e-05,2]
[352551049,1739163034378,-150.0,9.692e-05,2]
[352551050,1739163034387,-1000.0,9.744e-05,2]
[352551051,1739163034397,-150.0,9.769e-05,2]
[352551052,1739163034407,-500.2933221,9.806e-05,2]
[352551053,1739163034416,-497.52502578,9.806e-05,2]
[352551054,1739163034426,-505.45149393,9.806e-05,2]
[352551055,1739163034435,-503.97868254,9.806e-05,2]
[352551056,1739163034444,-508.97611901,9.806e-05,2]
[352551057,1739163034453,-500.0,9.806e-05,2]
[352551058,1739163034462,-301.17,9.806e-05,2]
[352551059,1739163034471,-500.0,9.806e-05,2]
[352551060,1739163034480,-507.49,9.806e-05,2]
[352551061,1739163034490,-500.0,9.806e-05,2]
[352551062,1739163034503,-417.76,9.806e-05,2]
[352551063,1739163034513,-435.41,9.806e-05,2]
[352551064,1739163034526,-500.0,9.806e-05,2]
[352551065,1739163034535,-270.6159311,9.806e-05,2]
[352551066,1739163034544,-500.0,9.846e-05,2]
[352551067,1739163034553,-500.0,9.846e-05,2]
[352551068,1739163034562,-500.0,9.846e-05,2]
[352551069,1739163034572,-500.0,9.846e-05,2]
[352551070,1739163034580,-500.0,9.846e-05,2]
[352551071,1739163034590,-500.0,9.846e-05,2]
[352551072,1739163034601,-500.0,9.846e-05,2]
[352551073,1739163034610,-500.0,9.846e-05,2]
[352551074,1739163034619,-500.0,9.846e-05,2]
[352551075,1739163034629,-500.0,9.846e-05,2]
[352551076,1739163034638,-500.0,9.846e-05,2]
[352551077,1739163034647,-500.0,9.846e-05,2]
[352551078,1739163034656,-500.0,9.846e-05,2]
[352551079,1739163034666,-500.0,9.846e-05,2]
[352551080,1739163034675,-500.0,9.846e-05,2]
[352551081,1739163034684,-500.0,9.846e-05,2]
[352551082,1739163034694,-500.0,9.846e-05,2]
[352551083,1739163034704,-500.0,9.846e-05,2]
[352551084,1739163034714,-509.08018418,9.846e-05,2]
[352551085,1739163034723,-500.0,9.846e-05,2]
[352551086,1739163034732,-570.76,9.846e-05,2]
[352551087,1739163034742,-500.0,9.846e-05,2]
[352551088,1739163034751,-500.0,9.846e-05,2]
[352551089,1739163034760,-500.0,9.846e-05,2]
[352551090,1739163034770,-500.0,9.846e-05,2]
[352551091,1739163034780,-500.0,9.846e-05,2]
[352551092,1739163034789,-500.0,9.846e-05,2]
[352551093,1739163034799,-500.0,9.846e-05,2]
[352551094,1739163034808,-500.0,9.846e-05,2]
[352551095,1739163034817,-500.0,9.846e-05,2]
[352551096,1739163034828,-500.0,9.846e-05,2]
[352551097,1739163034839,-500.0,9.846e-05,2]
[352551098,1739163034850,-500.0,9.846e-05,2]
[352551099,1739163034859,-500.0,9.846e-05,2]
[352551100,1739163034869,-500.0,9.846e-05,2]
[352551101,1739163034879,-500.0,9.846e-05,2]
[352551102,1739163034890,-500.0,9.846e-05,2]
[352551103,1739163034900,-156.627586,9.846e-05,2]
[352551104,1739163034909,-500.0,9.846e-05,2]
[352551105,1739163034920,-500.0,9.846e-05,2]
[352551106,1739163034929,-500.0,9.846e-05,2]
[352551107,1739163034938,-158.280976,9.846e-05,2]
[352551108,1739163034948,-500.0,9.846e-05,2]
[352551109,1739163034957,-500.0,9.846e-05,2]
[352551110,1739163034966,-500.0,9.846e-05,2]
[352551111,1739163034975,-500.0,9.846e-05,2]
[352551112,1739163034984,-500.0,9.846e-05,2]
[352551113,1739163034996,-156.080894,9.846e-05,2]
[352551114,1739163035006,-500.0,9.846e-05,2]
[352551115,1739163035015,-500.0,9.846e-05,2]
[352551116,1739163035024,-509.33177988,9.846e-05,2]
[352551117,1739163035033,-150.0,9.846e-05,2]
[352551118,1739163035043,-500.0,9.847e-05,2]
[352551119,1739163035053,-500.0,9.847e-05,2]
[352551120,1739163035062,-401.8385903,9.847e-05,2]
[352551121,1739163035072,-153.82477832,9.847e-05,2]
[352551122,1739163035081,-500.0,9.847e-05,2]
[352551123,1739163035090,-500.0,9.847e-05,2]
[352551124,1739163035101,-500.0,9.847e-05,2]
[352551125,1739163035111,-500.0,9.847e-05,2]
[352551126,1739163035121,-548.68114874,9.847e-05,2]
[352551127,1739163035130,-500.0,9.847e-05,2]
[352551128,1739163035139,-500.0,9.847e-05,2]
[352551129,1739163035148,-500.0,9.847e-05,2]
[352551130,1739163035158,-500.0,9.847e-05,2]
[352551131,1739163035168,-500.0,9.847e-05,2]
[352551132,1739163035178,-500.0,9.847e-05,2]
[352551133,1739163035188,-500.0,9.847e-05,2]
[352551134,1739163035197,-500.0,9.847e-05,2]
[352551135,1739163035207,-500.0,9.847e-05,2]
[352551136,1739163035217,-500.0,9.847e-05,2]
[352551137,1739163035226,-500.0,9.847e-05,2]
[352551138,1739163035235,-507.60391621,9.847e-05,2]
[352551139,1739163035245,-500.0,9.847e-05,2]
[352551140,1739163035254,-500.0,9.847e-05,2]
[352551141,1739163035264,-500.0,9.847e-05,2]
[352551142,1739163035274,-503.47274833,9.847e-05,2]
[352551143,1739163035283,-500.0,9.847e-05,2]
[352551144,1739163035299,-503.95100554,9.847e-05,2]
[352551145,1739163035319,-500.0,9.847e-05,2]
[352551146,1739163035328,-505.1059799,9.847e-05,2]
[352551147,1739163035338,-507.37843252,9.847e-05,2]
[352551148,1739163035348,-500.0,9.847e-05,2]
[352551149,1739163035357,-564.89407208,9.847e-05,2]
[352551150,1739163035367,-506.04578007,9.847e-05,2]
[352551151,1739163035376,-500.0,9.847e-05,2]
[352551152,1739163035385,-500.0,9.847e-05,2]
[352551153,1739163035394,-500.0,9.847e-05,2]
[352551154,1739163035403,-511.63906014,9.847e-05,2]
[352551155,1739163035412,-506.51105503,9.847e-05,2]
[352551156,1739163035421,-500.0,9.847e-05,2]
[352551157,1739163035430,-500.0,9.847e-05,2]
[352551158,1739163035440,-500.0,9.847e-05,2]
[352551159,1739163035449,-500.0,9.847e-05,2]
[352551160,1739163035459,-500.0,9.847e-05,2]
[352551161,1739163035469,-500.0,9.847e-05,2]
[352551162,1739163035478,-518.04953543,9.847e-05,2]
[352551163,1739163035487,-500.0,9.847e-05,2]
[352551164,1739163035496,-505.51356886,9.847e-05,2]
[352551165,1739163035506,-413.79205382,9.847e-05,2]
[352551166,1739163035515,-500.0,9.847e-05,2]
[352551167,1739163035671,-504.47661025,9.847e-05,2]
[352551168,1739163035682,-519.09173531,9.847e-05,2]
[352551169,1739163035692,-511.50903109,9.847e-05,2]
[352551170,1739163035701,-506.80432279,9.847e-05,2]
[352551171,1739163035711,-500.0,9.847e-05,2]
[352551172,1739163035720,-509.40336003,9.847e-05,2]
[352551173,1739163035729,-500.0,9.847e-05,2]
[352551174,1739163035738,-511.7366694,9.847e-05,2]
[352551175,1739163035747,-505.60092694,9.847e-05,2]
[352551176,1739163035756,-317.63218805,9.847e-05,2]
[352551177,1739163035766,-511.6657609,9.847e-05,2]
[352551178,1739163035775,-508.430664,9.847e-05,2]
[352551179,1739163035784,-500.0,9.847e-05,2]
[352551180,1739163035793,-508.94611598,9.847e-05,2]
[352551181,1739163035803,-509.35869229,9.847e-05,2]
[352551182,1739163035812,-500.0,9.847e-05,2]
[352551183,1739163035821,-495.60807748,9.847e-05,2]
[352551184,1739163035832,-509.19706985,9.847e-05,2]
[352551185,1739163035845,-506.40506855,9.847e-05,2]
[352551186,1739163035855,-510.58556943,9.847e-05,2]
[352551187,1739163035864,-504.93245385,9.847e-05,2]
[352551188,1739163035874,-509.99628042,9.847e-05,2]
[352551189,1739163035884,-506.82236284,9.847e-05,2]
[352551190,1739163035893,-500.0,9.847e-05,2]
[352551191,1739163035902,-505.26852406,9.847e-05,2]
[352551192,1739163035912,-506.63293948,9.847e-05,2]
[352551193,1739163035923,-506.48708567,9.847e-05,2]
[352551194,1739163035933,-502.49231401,9.847e-05,2]
[352551195,1739163035943,-507.18253081,9.847e-05,2]
[352551196,1739163035952,-505.80684523,9.847e-05,2]
[352551197,1739163035962,-507.4443546,9.847e-05,2]
[352551198,1739163035971,-503.02996734,9.847e-05,2]
[352551199,1739163035980,-512.7542866,9.847e-05,2]
[352551200,1739163035989,-2692.901,9.848e-05,2]
[352551201,1739163035999,-500.0,9.9e-05,2]
[352551202,1739163036009,-500.0,9.9e-05,2]
[352551203,1739163036018,-500.0,9.9e-05,2]
[352551204,1739163036027,-500.0,9.9e-05,2]
[352551205,1739163036037,-500.0,9.9e-05,2]
[352551206,1739163036046,-500.0,9.9e-05,2]
[352551207,1739163036056,-500.0,9.9e-05,2]
[352551208,1739163036065,-508.16243804,9.9e-05,2]
[352551209,1739163036074,-500.0,9.9e-05,2]
[352551210,1739163036083,-500.0,9.9e-05,2]
[352551211,1739163036093,-177.561125,9.9e-05,2]
[352551212,1739163036102,-500.0,9.9e-05,2]
[352551213,1739163036112,-398.83343524,9.9e-05,2]
[352551214,1739163036121,-500.0,9.9e-05,2]
[352551215,1739163036130,-504.21143988,9.9e-05,2]
[352551216,1739163036139,-500.0,9.9e-05,2]
[352551217,1739163036148,-500.0,9.9e-05,2]
[352551218,1739163036158,-500.0,9.9e-05,2]
[352551219,1739163036167,-500.0,9.9e-05,2]
[352551220,1739163036176,-500.0,9.9e-05,2]
[352551221,1739163036186,-500.0,9.9e-05,2]
[352551222,1739163036195,-500.0,9.9e-05,2]
[352551223,1739163036204,-500.0,9.9e-05,2]
[352551224,1739163036214,-500.0,9.9e-05,2]
[352551225,1739163036224,-500.0,9.9e-05,2]
[352551226,1739163036234,-500.0,9.9e-05,2]
[352551227,1739163036243,-500.0,9.9e-05,2]
[352551228,1739163036252,-541.62843723,9.9e-05,2]
[352551229,1739163036262,-500.0,9.9e-05,2]
[352551230,1739163036271,-1761.04,9.9e-05,2]
[352551231,1739163036280,-500.0,9.9e-05,2]
[352551232,1739163036289,-500.0,9.9e-05,2]
[352551233,1739163036299,-500.0,9.9e-05,2]
[352551234,1739163036308,-500.0,9.9e-05,2]
[352551235,1739163036317,-500.0,9.9e-05,2]
[352551236,1739163036327,-500.0,9.9e-05,2]
[352551237,1739163036336,-500.0,9.9e-05,2]
[352551238,1739163036346,-500.0,9.9e-05,2]
[352551239,1739163036355,-500.0,9.9e-05,2]
[352551240,1739163036364,-500.0,9.9e-05,2]
[352551241,1739163036374,-500.0,9.9e-05,2]
[352551242,1739163036383,-500.0,9.9e-05,2]
[352551243,1739163036392,-500.0,9.9e-05,2]
[352551244,1739163036401,-511.48,9.9e-05,2]
[352551245,1739163036411,-500.0,9.9e-05,2]
[352551246,1739163036420,-2024.0,9.901e-05,2]
[352551247,1739163036429,-1273.0,9.901e-05,2]
[352551248,1739163036438,-569.0,9.901e-05,2]
[352551249,1739163036447,-638.0,9.901e-05,2]
[352551250,1739163036456,-150.0,9.901e-05,2]
[352551251,1739163036465,-1827.0,9.901e-05,2]
[352551252,1739163036474,-783.0,9.901e-05,2]
[352551253,1739163036483,-2955.0,9.901e-05,2]
[352551254,1739163036492,-907.0,9.901e-05,2]
[352551255,1739163036501,-1265.0,9.901e-05,2]
[352551256,1739163036511,-4025.0,9.901e-05,2]
[352551257,1739163036520,-539.0,9.901e-05,2]
[352551258,1739163036529,-1007.0,9.901e-05,2]
[352551259,1739163036537,-150.0,9.901e-05,2]
[352551260,1739163036546,-3914.0,9.901e-05,2]
[352551261,1739163036555,-150.0,9.923e-05,2]
[352551262,1739163036566,-627.71832971,9.943e-05,2]
[352551263,1739163036575,-500.0,9.983e-05,2]
[352551264,1739163036584,-500.0,9.983e-05,2]
[352551265,1739163036593,-500.0,9.983e-05,2]